bitfinex-derivatives/quotes_BTCF0:USTF0_20251023
["timestamp","ask_amount","ask_price","bid_price","bid_amount"]
[1761241777514,0.0812834,111190.0,111180.0,0.14346147]
[1761241777710,0.05707,111190.0,111180.0,0.14346147]
[1761241777915,0.38259,111190.0,111180.0,0.47881488]
[1761241778616,0.38259,111190.0,111180.0,0.49258488]
[1761241778920,0.05707,111190.0,111180.0,0.49258488]
[1761241779311,0.09025779,111200.0,111190.0,0.1346444]
[1761241779618,0.40770265,111200.0,111190.0,0.48242781]
[1761241780011,0.08218265,111200.0,111190.0,0.48242781]
[1761241780211,0.11361044,111210.0,111200.0,0.1346363]
[1761241780408,0.40682265,111210.0,111200.0,0.46998971]
[1761241781012,0.40682265,111210.0,111200.0,0.1346363]
[1761241781221,0.08130265,111210.0,111200.0,0.1346363]
[1761241781414,0.38259,111210.0,111200.0,0.1346363]
[1761241782512,0.38259,111210.0,111200.0,0.46998971]
[1761241783020,0.38255,111210.0,111200.0,0.46998971]
[1761241783916,0.41485779,111210.0,111200.0,0.46998971]
[1761241784518,0.08937779,111210.0,111200.0,0.46998971]
[1761241784914,0.10099817,111210.0,111200.0,0.47282971]
[1761241785116,0.40492817,111210.0,111200.0,0.47282971]
[1761241785315,0.07944817,111210.0,111200.0,0.47282971]
[1761241785516,0.02423038,111210.0,111200.0,0.87282971]
[1761241788219,0.08130038,111210.0,111200.0,0.46998971]
[1761241788624,0.08130038,111210.0,111200.0,0.47282971]
[1761241788822,0.07891781,111250.0,111200.0,0.73759685]
[1761241789020,0.1968391,111280.0,111270.0,0.1028898]
[1761241789221,0.05707,111290.0,111280.0,0.0898417]
[1761241789426,0.05707,111290.0,111280.0,0.33469225]
[1761241789625,0.04446,111290.0,111280.0,0.33469225]
[1761241789926,0.01261,111300.0,111280.0,0.5348128]
[1761241790124,0.50012878,111310.0,111300.0,0.1345555]
[1761241790328,0.50012878,111310.0,111300.0,0.33467605]
[1761241790827,0.50012878,111310.0,111300.0,0.66015605]
[1761241791223,0.50012878,111310.0,111260.0,0.03668302]
[1761241791224,0.01261,111300.0,111260.0,0.03668302]
[1761241791425,0.1469008,111300.0,111290.0,0.04473]
[1761241791620,0.05707,111300.0,111280.0,0.33105]
[1761241791825,0.1342936,111290.0,111280.0,0.33105]
[1761241792231,0.05707,111300.0,111280.0,0.61434765]
[1761241792528,0.1342936,111290.0,111280.0,0.32802765]
[1761241792728,0.1342936,111290.0,111280.0,0.04473]
[1761241792918,0.1350297,111270.0,111260.0,0.06379581]
[1761241793118,0.1350297,111270.0,111260.0,0.37879581]
[1761241793725,0.1350297,111270.0,111260.0,0.05075581]
[1761241793918,0.1350297,111270.0,111260.0,0.37879581]
[1761241794125,0.1350297,111270.0,111260.0,0.04556]
[1761241794434,0.1350459,111250.0,111240.0,0.37363562]
[1761241795232,0.04518,111250.0,111240.0,0.48246868]
[1761241795431,0.1350459,111250.0,111240.0,0.39259468]
[1761241795832,0.1350459,111250.0,111240.0,0.37903468]
[1761241796631,0.1350459,111250.0,111240.0,0.46890868]
[1761241796829,0.0950459,111250.0,111240.0,0.46890868]
[1761241797026,0.1191559,111250.0,111240.0,0.39259468]
[1761241797434,0.1191559,111250.0,111240.0,0.48246858]
[1761241798032,0.1191559,111250.0,111240.0,0.39259468]
[1761241798833,0.1191559,111250.0,111240.0,0.05107468]
[1761241799036,0.04518,111230.0,111220.0,0.00449539]
[1761241799337,0.01436,111240.0,111190.0,0.33582495]
[1761241799338,0.03847,111220.0,111190.0,0.33582495]
[1761241799528,0.05954,111220.0,111210.0,0.04556]
[1761241799837,0.04518,111220.0,111210.0,0.04556]
[1761241800038,0.05963347,111220.0,111210.0,0.04556]
[1761241800232,9.347e-05,111220.0,111210.0,0.1354582]
[1761241800636,0.02411,111240.0,111230.0,0.04556]
[1761241800830,0.05954,111240.0,111230.0,0.04556]
[1761241801031,0.05954,111240.0,111230.0,0.135442]
[1761241801732,0.05954,111240.0,111230.0,0.04556]
[1761241801930,0.05954,111240.0,111230.0,0.135442]
[1761241802526,0.12518,111250.0,111240.0,0.1354339]
[1761241803841,0.10411,111250.0,111240.0,0.33555445]
[1761241804038,0.02411,111260.0,111250.0,0.1354259]
[1761241804237,0.04998,111270.0,111260.0,0.1354178]
[1761241804543,0.0048,111270.0,111260.0,0.1489778]
[1761241804739,0.0048,111270.0,111260.0,0.34909835]
[1761241805241,0.00161411,111270.0,111260.0,0.74909835]
[1761241805834,0.02572411,111270.0,111260.0,0.48344853]
[1761241806035,0.00161411,111270.0,111260.0,0.68356908]
[1761241806235,0.00161411,111270.0,111260.0,1.08356908]
[1761241806929,0.00161411,111270.0,111260.0,1.10478784]
[1761241807943,0.00028079,111270.0,111260.0,1.10478784]
[1761241809541,0.56823878,111310.0,111300.0,0.04556]
[1761241809733,0.48823878,111310.0,111300.0,0.1353855]
[1761241810135,0.44305878,111310.0,111300.0,0.34906605]
[1761241810430,0.05954,111300.0,111290.0,0.37468]
[1761241810642,0.05954,111300.0,111280.0,0.37456]
[1761241810942,0.05954,111300.0,111280.0,0.4644012]
[1761241811138,0.05954,111300.0,111290.0,0.1353936]
[1761241811641,0.02411,111300.0,111290.0,0.04556]
[1761241811842,0.04518,111300.0,111290.0,0.04556]
[1761241812244,0.05954,111300.0,111290.0,0.04556]
[1761241812540,0.05954,111300.0,111290.0,0.1353936]
[1761241812942,0.04518,111300.0,111290.0,0.1353936]
[1761241813138,0.02411,111300.0,111290.0,0.1353936]
[1761241813639,0.04518,111300.0,111290.0,0.24568055]
[1761241813844,0.04518,111300.0,111290.0,0.33551415]
[1761241814044,0.04518,111300.0,111290.0,0.04556]
[1761241814246,0.05954,111300.0,111290.0,0.04556]
[1761241814446,0.05954,111300.0,111290.0,0.37452]
[1761241815146,0.05954,111300.0,111290.0,0.04556]
[1761241815850,0.05954,111300.0,111280.0,0.37444]
[1761241816540,0.20012055,111290.0,111280.0,0.37444]
[1761241816738,0.04518,111270.0,111260.0,0.46936813]
[1761241817544,0.04518,111270.0,111260.0,0.68304868]
[1761241817936,0.04518,111270.0,111260.0,0.37951073]
[1761241818134,0.04518,111270.0,111260.0,0.46936853]
[1761241818940,0.04518,111270.0,111260.0,0.37951073]
[1761241819149,0.04518,111270.0,111260.0,0.46936853]
[1761241819539,0.02411,111270.0,111260.0,0.68304908]
[1761241819739,0.04518,111290.0,111280.0,0.089839]
[1761241819941,0.04518,111290.0,111270.0,0.20012055]
[1761241820137,0.04518,111270.0,111260.0,0.37935073]
[1761241820549,0.04518,111270.0,111260.0,0.46920853]
[1761241820941,0.04518,111270.0,111260.0,0.37935073]
[1761241821143,0.04518,111270.0,111260.0,0.46920863]
[1761241821547,0.04518,111270.0,111260.0,0.374]
[1761241822250,0.04518,111270.0,111260.0,0.4638578]
[1761241823048,0.04518,111270.0,111260.0,0.374]
[1761241823248,0.04518,111270.0,111260.0,0.3794197]
[1761241823448,0.04518,111270.0,111260.0,0.4692774]
[1761241823648,0.04518,111270.0,111260.0,0.374]
[1761241823947,0.04518,111270.0,111260.0,0.33553825]
[1761241824552,0.04518,111270.0,111260.0,0.34095582]
[1761241825048,0.04518,111270.0,111260.0,0.05097757]
[1761241825244,0.04518,111270.0,111260.0,0.14083527]
[1761241826440,0.04518,111270.0,111260.0,0.34095582]
[1761241826645,0.01436,111280.0,111260.0,0.43976352]
[1761241826646,0.05923,111280.0,111260.0,0.43976352]
[1761241827151,0.05923,111280.0,111260.0,0.05992757]
[1761241827353,0.05923,111280.0,111260.0,0.05097757]
[1761241827662,0.02923,111280.0,111260.0,0.14083497]
[1761241827954,0.04275,111280.0,111260.0,0.15462497]
[1761241828551,0.24287055,111280.0,111260.0,0.06476757]
[1761241828855,0.24499055,111270.0,111260.0,0.00541757]
[1761241829048,0.04487,111250.0,111240.0,0.05973536]
[1761241829249,0.04487,111260.0,111240.0,0.34972981]
[1761241829755,0.05839,111260.0,111240.0,0.05973536]
[1761241830349,0.05839,111260.0,111240.0,0.06491526]
[1761241830748,0.25851055,111260.0,111240.0,0.05112526]
[1761241831051,0.04487,111250.0,111240.0,0.05112526]
[1761241832556,0.04487,111250.0,111240.0,0.02808526]
[1761241832754,0.04487,111250.0,111240.0,0.05112526]
[1761241833150,0.04487,111250.0,111240.0,0.15478916]
[1761241834653,0.04487,111260.0,111250.0,0.0898658]
[1761241834856,0.04487,111260.0,111250.0,0.33557635]
[1761241835358,0.04487,111260.0,111250.0,0.04559]
[1761241835560,0.05839,111260.0,111250.0,0.04559]
[1761241838662,0.05839,111260.0,111250.0,0.24571055]
[1761241838863,0.05839,111260.0,111250.0,0.33557635]
[1761241839164,0.04487,111270.0,111260.0,0.1492358]
[1761241839365,0.04487,111270.0,111260.0,0.34935635]
[1761241839760,0.04487,111270.0,111260.0,0.05938]
[1761241839974,0.04487,111270.0,111260.0,0.4766777]
[1761241840162,0.02348,111270.0,111260.0,0.67679825]
[1761241840367,0.04487,111280.0,111270.0,0.1354396]
[1761241840559,0.02348,111290.0,111280.0,0.01379]
[1761241840866,0.04487,111290.0,111280.0,0.05938]
[1761241841063,0.04487,111290.0,111280.0,0.04559]
[1761241844268,0.04487,111290.0,111280.0,0.25950055]
[1761241844667,0.04487,111290.0,111280.0,0.04559]
[1761241844869,0.07702568,111290.0,111280.0,0.04559]
[1761241845767,0.07702568,111290.0,111280.0,0.24571055]
[1761241845969,0.04487,111290.0,111280.0,0.34934215]
[1761241846366,0.04487,111290.0,111280.0,0.25950055]
[1761241846563,0.04487,111290.0,111280.0,0.35457829]
[1761241846766,0.04487,111290.0,111280.0,0.15445774]
[1761241846966,0.04487,111290.0,111280.0,0.35457829]
[1761241847563,0.04487,111290.0,111280.0,0.26473669]
[1761241847769,0.04487,111290.0,111280.0,0.35457829]
[1761241848762,0.04487,111290.0,111280.0,0.15445774]
[1761241849165,0.04487,111300.0,111280.0,0.5793009]
[1761241849362,0.04487,111300.0,111290.0,0.4622235]
[1761241849670,0.56792878,111310.0,111300.0,0.05938]
[1761241850170,0.56792878,111310.0,111300.0,0.1492054]
[1761241850372,0.60008446,111310.0,111300.0,0.1492054]
[1761241850570,0.56792878,111310.0,111300.0,0.4759654]
[1761241851271,0.56792878,111310.0,111300.0,0.81097496]
[1761241851473,0.56792878,111310.0,111300.0,0.4759654]
[1761241851672,0.56792878,111310.0,111300.0,0.4758454]
[1761241852274,0.56792878,111310.0,111300.0,0.1492054]
[1761241852568,0.56792878,111310.0,111300.0,0.04559]
[1761241852775,0.56792878,111310.0,111300.0,0.37215]
[1761241853275,0.56792878,111310.0,111300.0,0.38597]
[1761241853674,0.56792878,111310.0,111300.0,0.4757954]
[1761241854077,0.56792878,111310.0,111300.0,0.38597]
[1761241854276,0.56792878,111310.0,111300.0,0.04559]
[1761241854575,0.56792878,111310.0,111300.0,0.37195]
[1761241855364,0.96792878,111310.0,111300.0,0.02304]
[1761241855578,0.96792878,111310.0,111280.0,0.15287241]
[1761241855579,0.04487,111290.0,111280.0,0.15287241]
[1761241855776,0.04487,111290.0,111280.0,0.47915241]
[1761241856576,0.04487,111290.0,111280.0,0.38923481]
[1761241857072,0.04487,111290.0,111280.0,0.47907641]
[1761241857276,0.04487,111290.0,111280.0,0.38923481]
[1761241858277,0.04487,111290.0,111280.0,0.38907481]
[1761241858480,0.04487,111290.0,111280.0,0.04924481]
[1761241858774,0.07702568,111290.0,111280.0,0.04924481]
[1761241860880,0.07702568,111290.0,111280.0,0.06306481]
[1761241861375,0.08027155,111300.0,111280.0,0.48791597]
[1761241861582,0.05842,111300.0,111280.0,0.06306481]
[1761241861778,0.09057568,111300.0,111280.0,0.15290581]
[1761241861981,0.09057568,111300.0,111290.0,0.1358335]
[1761241862976,0.09057568,111300.0,111290.0,0.046]
[1761241863285,0.09057568,111300.0,111290.0,0.1358335]
[1761241863877,0.05842,111300.0,111290.0,0.1358335]
[1761241864876,0.39342956,111300.0,111280.0,0.04013481]
[1761241865072,0.05842,111300.0,111280.0,0.13908331]
[1761241865286,0.05842,111300.0,111280.0,0.06306481]
[1761241865688,0.05842,111300.0,111280.0,0.15290621]
[1761241865986,0.05842,111300.0,111280.0,0.06306481]
[1761241866185,0.09057568,111300.0,111280.0,0.04924481]
[1761241866885,0.75130524,111300.0,111260.0,0.03672]
[1761241867080,0.04487,111270.0,111260.0,0.02293]
[1761241867387,0.37059,111270.0,111260.0,0.046]
[1761241867782,0.04487,111270.0,111260.0,0.1496777]
[1761241867982,0.02224,111270.0,111260.0,0.1496777]
[1761241868784,0.11645155,111280.0,111260.0,0.15284171]
[1761241868977,0.09057568,111280.0,111270.0,0.0898496]
[1761241869278,0.04487,111290.0,111280.0,0.1496615]
[1761241869475,0.04487,111290.0,111280.0,0.05982]
[1761241869883,0.04487,111290.0,111280.0,0.046]
[1761241870385,0.04487,111290.0,111280.0,0.02293]
[1761241871781,0.07711868,111290.0,111280.0,0.02293]
[1761241871990,0.04487,111270.0,111260.0,0.08662703]
[1761241872185,0.04487,111270.0,111260.0,0.06964302]
[1761241872484,0.04487,111270.0,111260.0,0.05982]
[1761241872888,0.04487,111270.0,111260.0,0.02293]
[1761241873184,0.04487,111270.0,111260.0,0.1358577]
[1761241873691,0.04487,111270.0,111260.0,0.1496777]
[1761241874780,0.04487,111270.0,111260.0,0.05982]
[1761241875182,0.02224,111270.0,111260.0,0.1496777]
[1761241875379,0.05842,111280.0,111260.0,0.1496747]
[1761241875790,0.05842,111280.0,111260.0,0.149677]
[1761241876088,0.05842,111280.0,111260.0,0.05982]
[1761241876293,0.05842,111280.0,111260.0,0.1496773]
[1761241876495,0.33500956,111270.0,111260.0,0.05982]
[1761241876795,0.04487,111250.0,111240.0,0.04609536]
[1761241877694,0.04487,111250.0,111240.0,9.536e-05]
[1761241877886,0.37987956,111250.0,111240.0,9.536e-05]
[1761241878092,0.04487,111250.0,111240.0,9.536e-05]
[1761241878298,0.04487,111250.0,111240.0,0.04609536]
[1761241878596,0.03224868,111270.0,111240.0,0.14978826]
[1761241878986,0.75468411,111280.0,111240.0,0.15290359]
[1761241879188,0.75468411,111280.0,111240.0,0.47866359]
[1761241879387,0.04487,111250.0,111240.0,0.38567536]
[1761241879693,0.04487,111250.0,111240.0,0.47554916]
[1761241880489,0.02224,111250.0,111240.0,0.47554916]
[1761241880688,0.04487,111260.0,111250.0,0.1358659]
[1761241881092,0.05842,111260.0,111250.0,0.1358659]
[1761241881795,0.04487,111260.0,111250.0,0.046]
[1761241881994,0.05842,111260.0,111250.0,0.046]
[1761241883193,0.05842,111260.0,111250.0,0.02293]
[1761241883395,0.79342956,111260.0,111240.0,9.536e-05]
[1761241883703,0.42567824,111260.0,111240.0,9.536e-05]
[1761241884194,0.05842,111260.0,111250.0,0.04459]
[1761241884496,0.39342956,111260.0,111240.0,0.05784536]
[1761241884698,0.05842,111260.0,111240.0,0.05784536]
[1761241884897,0.05842,111260.0,111240.0,0.14771926]
[1761241886092,0.05842,111260.0,111240.0,0.05784536]
[1761241886293,0.05842,111260.0,111240.0,0.14771856]
[1761241887104,0.05842,111260.0,111240.0,0.05784536]
[1761241887403,0.05842,111260.0,111240.0,0.04468536]
[1761241887601,0.09066868,111260.0,111240.0,0.04468536]
[1761241887997,0.09066868,111260.0,111240.0,9.536e-05]
[1761241887998,0.42567824,111260.0,111240.0,9.536e-05]
[1761241888497,0.09066868,111260.0,111240.0,0.02216536]
[1761241888703,0.09066868,111260.0,111240.0,0.04514536]
[1761241889594,0.38028956,111250.0,111240.0,9.536e-05]
[1761241889801,0.70608956,111250.0,111240.0,9.536e-05]
[1761241890099,0.37108,111250.0,111240.0,0.05832536]
[1761241890304,0.04528,111250.0,111240.0,0.05832536]
[1761241890505,0.04528,111250.0,111240.0,0.14819926]
[1761241890904,0.04528,111250.0,111240.0,0.05832536]
[1761241891601,0.04528,111250.0,111240.0,0.14819926]
[1761241893099,0.04528,111250.0,111240.0,0.05832536]
[1761241893698,0.04528,111250.0,111240.0,0.14819926]
[1761241893900,0.04528,111250.0,111240.0,0.05832536]
[1761241894205,0.04528,111250.0,111240.0,0.04514536]
[1761241895008,0.04528,111250.0,111240.0,0.05832536]
[1761241895206,0.04528,111250.0,111240.0,0.14819936]
[1761241896404,0.04528,111250.0,111240.0,0.04514536]
[1761241896597,0.04528,111250.0,111240.0,0.02216536]
[1761241896793,0.04528,111250.0,111240.0,0.04514536]
[1761241896993,0.04528,111250.0,111240.0,0.05832536]
[1761241900016,0.04528,111250.0,111240.0,0.14819926]
[1761241900911,0.04528,111250.0,111240.0,0.05832536]
[1761241903210,0.05889,111250.0,111240.0,0.05832536]
[1761241903601,0.39389956,111250.0,111240.0,9.536e-05]
[1761241903911,0.44201543,111250.0,111240.0,0.02216536]
[1761241904212,0.10700587,111250.0,111240.0,0.02216536]
[1761241904411,0.10700587,111250.0,111240.0,0.04514536]
[1761241904711,0.12298061,111250.0,111240.0,0.04514536]
[1761241906111,0.45799017,111250.0,111240.0,9.536e-05]
[1761241906410,0.84239618,111250.0,111240.0,9.536e-05]
[1761241906608,0.50738662,111250.0,111240.0,9.536e-05]
[1761241907609,0.10738662,111250.0,111240.0,0.02216536]
[1761241907809,0.10738662,111250.0,111240.0,0.04514536]
[1761241908306,0.10738662,111250.0,111240.0,0.05832536]
[1761241909013,0.05889,111250.0,111240.0,0.05832536]
[1761241909208,0.12298061,111250.0,111240.0,9.536e-05]
[1761241909607,0.52298061,111250.0,111240.0,9.536e-05]
[1761241910909,0.72305673,111250.0,111240.0,9.536e-05]
[1761241912314,0.52298061,111250.0,111240.0,9.536e-05]
[1761241912510,0.52298061,111250.0,111240.0,0.04514536]
[1761241913110,0.12298061,111250.0,111240.0,0.05889536]
[1761241913311,0.10937061,111250.0,111240.0,0.34884538]
[1761241913615,0.09378712,111250.0,111240.0,0.14876926]
[1761241913813,0.091148,111250.0,111240.0,0.14876926]
[1761241915021,0.091148,111250.0,111240.0,0.05889536]
[1761241915215,0.091148,111250.0,111240.0,0.04514536]
[1761241916817,0.25119223,111250.0,111240.0,0.04514536]
[1761241917219,0.29969935,111250.0,111240.0,0.04514536]
[1761241917619,0.25119223,111250.0,111240.0,0.04514536]
[1761241918522,0.25119223,111250.0,111240.0,0.20518959]
[1761241918720,0.25119223,111250.0,111240.0,0.21893959]
[1761241918920,0.25119223,111250.0,111240.0,0.05889536]
[1761241919121,0.091148,111250.0,111240.0,0.21893959]
[1761241919319,0.25119223,111250.0,111240.0,0.21893959]
[1761241919522,0.25119223,111250.0,111240.0,0.05889536]
[1761241919823,0.25119223,111250.0,111240.0,0.04514536]
[1761241922023,0.25119223,111250.0,111240.0,0.21893959]
[1761241922224,0.21885423,111250.0,111240.0,0.21893959]
[1761241922536,0.04528,111250.0,111240.0,0.21893959]
[1761241923014,0.21885423,111250.0,111240.0,9.536e-05]
[1761241923212,0.21885423,111250.0,111240.0,0.04347536]
[1761241923418,0.25119223,111250.0,111240.0,0.02212536]
[1761241923721,0.25119223,111250.0,111240.0,9.536e-05]
[1761241924116,0.29969935,111250.0,111240.0,9.536e-05]
[1761241924427,0.42740558,111250.0,111240.0,9.536e-05]
[1761241924614,0.26736135,111250.0,111240.0,9.536e-05]
[1761241926117,0.26736135,111250.0,111240.0,0.04347536]
[1761241926318,0.28294484,111250.0,111240.0,0.04347536]
[1761241926625,0.28294484,111250.0,111240.0,0.02212536]
[1761241927017,0.28294484,111250.0,111240.0,9.536e-05]
[1761241927216,0.28294484,111250.0,111240.0,0.02212536]
[1761241927416,0.12290061,111250.0,111240.0,9.536e-05]
[1761241927621,0.28294484,111250.0,111240.0,9.536e-05]
[1761241927817,0.09380023,111250.0,111240.0,0.14709926]
[1761241928019,0.26737446,111250.0,111240.0,0.14709926]
[1761241928217,0.26737446,111250.0,111240.0,0.04347536]
[1761241930129,0.26737446,111250.0,111240.0,0.02212536]
[1761241930624,0.26737446,111250.0,111240.0,0.04347536]
[1761241931822,0.26737446,111250.0,111240.0,9.536e-05]
[1761241932422,0.42741869,111250.0,111240.0,9.536e-05]
[1761241932624,0.05856,111230.0,111220.0,0.02652539]
[1761241932825,0.21860423,111230.0,111220.0,0.04787539]
[1761241933125,0.26711804,111230.0,111220.0,0.04787539]
[1761241933329,0.21860423,111230.0,111220.0,0.00449539]
[1761241933526,0.28332267,111230.0,111220.0,0.00449539]
[1761241933829,0.26721048,111230.0,111220.0,0.00449539]
[1761241934719,0.82716624,111230.0,111220.0,0.00449539]
[1761241934919,0.05856,111210.0,111190.0,0.1038943]
[1761241935128,0.21867225,111200.0,111190.0,0.29356853]
[1761241935427,0.04509802,111200.0,111190.0,0.30953214]
[1761241935930,0.21867225,111200.0,111190.0,0.14948791]
[1761241936123,0.21867225,111200.0,111190.0,0.04582361]
[1761241936628,0.41104918,111200.0,111190.0,0.02226]
[1761241936827,0.41104918,111200.0,111190.0,0.00023]
[1761241937430,0.73660918,111200.0,111190.0,0.00023]
[1761241937832,0.73660918,111200.0,111180.0,0.00449701]
[1761241937833,1.13654116,111200.0,111180.0,0.00449701]
[1761241938029,0.20517987,111190.0,111180.0,0.00449701]
[1761241941125,0.20507423,111190.0,111180.0,0.00449701]
[1761241941528,0.76511846,111190.0,111160.0,0.00229207]
[1761241941734,0.20507423,111170.0,111160.0,0.04338]
[1761241941936,0.20515464,111170.0,111160.0,0.04338]
[1761241942125,0.20515464,111170.0,111160.0,0.02203]
[1761241942330,0.05856,111160.0,111150.0,0.38507784]
[1761241942526,0.21866969,111160.0,111150.0,0.48809155]
[1761241942833,0.21866969,111160.0,111150.0,0.64813578]
[1761241943033,0.20513969,111160.0,111150.0,0.64813578]
[1761241943536,0.20513969,111160.0,111150.0,0.64707379]
[1761241943835,0.04509546,111160.0,111150.0,0.64707379]
[1761241944133,0.20513969,111160.0,111150.0,0.48702956]
[1761241944531,0.20513969,111160.0,111150.0,0.64707379]
[1761241945932,0.20507423,111160.0,111150.0,0.05786701]
[1761241946233,0.37065683,111160.0,111150.0,0.32066804]
[1761241946534,6.683e-05,111160.0,111150.0,0.32288457]
[1761241946835,6.683e-05,111160.0,111150.0,0.70981756]
[1761241949141,6.683e-05,111160.0,111150.0,0.54977333]
[1761241949329,6.683e-05,111160.0,111150.0,0.70981756]
[1761241950331,6.683e-05,111160.0,111150.0,0.86986179]
[1761241952749,6.683e-05,111160.0,111150.0,0.70981756]
[1761241953541,6.683e-05,111160.0,111150.0,0.30981756]
[1761241953736,0.18218106,111160.0,111150.0,0.63533756]
[1761241953936,0.20407106,111160.0,111150.0,0.05982653]
[1761241954136,0.04402683,111160.0,111150.0,0.63533756]
[1761241955042,0.36411529,111160.0,111150.0,0.05982653]
[1761241955242,0.05762,111150.0,111140.0,0.38736863]
[1761241955443,0.21766423,111150.0,111140.0,0.38760635]
[1761241955645,0.21766423,111150.0,111140.0,0.38990494]
[1761241956041,0.21775599,111150.0,111140.0,0.38990494]
[1761241956243,0.21775599,111150.0,111140.0,0.38760635]
[1761241956739,0.21775599,111150.0,111140.0,0.47756125]
[1761241957143,0.21775599,111150.0,111140.0,0.38760635]
[1761241957737,0.21775599,111150.0,111140.0,0.47756125]
[1761241958740,0.20409599,111150.0,111140.0,0.65041548]
[1761241959639,0.20409599,111150.0,111140.0,0.65263921]
[1761241960238,0.20409599,111150.0,111140.0,0.32711921]
[1761241961244,0.04405176,111150.0,111140.0,0.32711921]
[1761241961436,0.20409599,111150.0,111140.0,0.16707498]
[1761241961641,0.20409599,111150.0,111140.0,0.32711921]
[1761241962038,0.21775599,111150.0,111140.0,0.07712008]
[1761241962341,0.21775599,111150.0,111140.0,0.15426498]
[1761241962542,0.21775599,111150.0,111140.0,0.16707498]
[1761241963748,0.20409599,111150.0,111140.0,0.16707498]
[1761241964138,0.20409599,111150.0,111140.0,0.32711921]
[1761241965645,0.20400423,111160.0,111150.0,0.1472968]
[1761241965840,0.20400423,111160.0,111150.0,0.32038875]
[1761241966041,0.20400423,111160.0,111150.0,0.30734103]
[1761241966743,0.20409771,111160.0,111150.0,0.30734103]
[1761241966937,0.20409771,111160.0,111150.0,0.1472968]
[1761241967147,0.20409771,111160.0,111150.0,0.30734103]
[1761241967644,0.20409771,111160.0,111150.0,0.1472968]
[1761241967848,0.20409771,111160.0,111150.0,0.30734103]
[1761241968044,0.21775771,111160.0,111150.0,0.05735]
[1761241968248,0.37780194,111160.0,111150.0,0.04454]
[1761241969549,0.37780194,111160.0,111150.0,0.02159]
[1761241969750,0.01366,111150.0,111140.0,0.47946396]
[1761241969945,0.21773491,111150.0,111140.0,0.47946396]
[1761241970746,0.04403068,111150.0,111140.0,0.63950819]
[1761241971251,0.02214068,111150.0,111140.0,0.63950819]
[1761241971649,0.04403068,111150.0,111140.0,0.63950819]
[1761241972147,0.20407491,111150.0,111140.0,0.63950819]
[1761241972749,0.04403068,111150.0,111140.0,0.47946396]
[1761241974048,0.04614,111130.0,111120.0,0.1475245]
[1761241974242,0.20652312,111130.0,111120.0,0.1475245]
[1761241974440,0.04621923,111130.0,111120.0,0.147531]
[1761241975044,0.04621923,111130.0,111120.0,0.05756]
[1761241975347,0.20652312,111130.0,111120.0,0.05756]
[1761241975657,0.20652312,111130.0,111120.0,0.15117862]
[1761241976039,0.20652312,111130.0,111120.0,0.06120752]
[1761241976247,0.21955312,111130.0,111120.0,0.04431]
[1761241976449,0.21955312,111130.0,111120.0,0.05740554]
[1761241976647,0.22318913,111130.0,111120.0,0.05740554]
[1761241976848,0.21955312,111130.0,111120.0,0.05740554]
[1761241977053,0.65180659,111130.0,111120.0,0.01309554]
[1761241977348,0.04614,111110.0,111100.0,0.47740745]
[1761241977548,0.0373624,111110.0,111100.0,0.38742025]
[1761241977754,0.03742858,111110.0,111100.0,0.47740745]
[1761241977955,0.19773247,111110.0,111100.0,0.47740745]
[1761241978544,0.21076247,111110.0,111100.0,0.02553025]
[1761241978745,0.03742858,111110.0,111100.0,0.06559771]
[1761241979648,0.03742858,111110.0,111100.0,0.15558501]
[1761241980347,0.03742858,111110.0,111100.0,0.06559771]
[1761241980847,0.03742858,111110.0,111100.0,0.15558491]
[1761241980848,0.05045858,111110.0,111100.0,0.15558491]
[1761241981256,0.03742858,111110.0,111100.0,0.15558491]
[1761241986454,0.38669065,111110.0,111100.0,0.04881025]
[1761241986659,0.38669065,111110.0,111100.0,0.15204745]
[1761241987051,0.05045858,111110.0,111100.0,0.15204745]
[1761241988460,0.05409891,111110.0,111100.0,0.15204745]
[1761241988663,0.04106891,111110.0,111100.0,0.15204745]
[1761241989759,0.04106891,111110.0,111100.0,0.06206025]
[1761241990076,0.05409891,111110.0,111100.0,0.06206025]
[1761241991267,0.05409891,111110.0,111100.0,0.04881025]
[1761241992759,0.05409891,111110.0,111100.0,0.15204745]
[1761241992964,0.00370651,111110.0,111100.0,0.15204745]
[1761241993266,0.04984651,111110.0,111100.0,0.15204745]
[1761241993867,6.618e-05,111110.0,111100.0,0.15204745]
[1761241995161,6.618e-05,111110.0,111100.0,0.88827952]
[1761241995367,6.618e-05,111110.0,111100.0,0.55204745]
[1761242000759,6.618e-05,111110.0,111100.0,0.71242589]
[1761242000967,0.08083175,111140.0,111130.0,0.147523]
[1761242000968,0.0784727,111140.0,111130.0,0.147523]
[1761242001172,0.23885114,111140.0,111130.0,0.147523]
[1761242001872,0.2389211,111140.0,111130.0,0.147523]
[1761242003273,0.04620996,111140.0,111130.0,0.147523]
[1761242006772,6.996e-05,111140.0,111130.0,0.30790144]
[1761242007078,6.996e-05,111140.0,111130.0,0.70790144]
[1761242010279,0.23724114,111170.0,111160.0,0.1475087]
[1761242010469,0.20490844,111170.0,111160.0,0.1475087]
[1761242010669,0.04453,111170.0,111160.0,0.1475087]
[1761242011469,0.20490844,111170.0,111160.0,0.1475087]
[1761242011877,0.21759844,111170.0,111160.0,0.1475087]
[1761242012178,0.21759844,111170.0,111160.0,0.1341687]
[1761242013476,0.21759844,111170.0,111160.0,0.1475087]
[1761242014373,0.20490844,111170.0,111160.0,0.1475087]
[1761242016470,0.04453,111170.0,111160.0,0.1475087]
[1761242016676,0.20490844,111170.0,111160.0,0.1475087]
[1761242017084,0.04453,111170.0,111160.0,0.1475087]
[1761242017383,0.02256,111180.0,111170.0,0.1475006]
[1761242017684,0.02256,111180.0,111170.0,0.4723406]
[1761242017886,0.04453,111180.0,111170.0,0.4723406]
[1761242019182,0.05722,111180.0,111170.0,0.4723406]
[1761242019379,0.21759844,111180.0,111170.0,0.4723406]
[1761242019989,0.05722,111180.0,111170.0,0.4723406]
[1761242020181,0.21759844,111180.0,111170.0,0.4723406]
[1761242020989,0.21759844,111180.0,111170.0,0.4723006]
[1761242021583,0.37797688,111180.0,111170.0,0.36899]
[1761242022191,0.24993114,111180.0,111170.0,0.36899]
[1761242022691,0.24993114,111180.0,111170.0,0.04423]
[1761242023489,0.01269,111170.0,111160.0,0.1475044]
[1761242023689,0.21759844,111170.0,111160.0,0.4722244]
[1761242023889,0.21759844,111170.0,111160.0,0.1475044]
[1761242024089,0.21759844,111170.0,111160.0,0.4722244]
[1761242025488,0.01269,111160.0,111150.0,0.05757]
[1761242025692,0.21759844,111160.0,111150.0,0.38225]
[1761242026199,0.21759844,111160.0,111150.0,0.4721968]
[1761242027293,0.21759844,111160.0,111150.0,0.38225]
[1761242027601,0.21759844,111160.0,111150.0,0.05757]
[1761242029181,0.24993114,111160.0,111150.0,0.05757]